Cogmind - Beta 11.1 @@@ ROGUE MODE // 2022.11.14 @ 09:05:34 Player: Themeralderp Result: Destroyed by P-80 Master with Gamma Rifle Performance ------------- Evolutions (7) 3500 Regions Visited (19) 3800 Robots Destroyed (211) 1055 Value Destroyed (8690) 8690 Prototype IDs (51) 1020 Alien Tech Used (2) 400 Bonus (204) 204 TOTAL SCORE: 18669 Bonus ------- High Alert Combat Kills 67 Follower Combat Kills 265 Entered Garrisons 200 Used RIF Installer 500 Met Zhirov 300 Friendly Fire -1128 Cogmind --------- Core Integrity 0/1300 Matter 259/300 Energy 90/100 System Corruption 23% Temperature Hot (214) Movement Hovering (60) Location -3/Testing Parts ------- > --- POWER (3) -------- (None) > --- PROPULSION (5) --- Antigrav Array > --- UTILITY (8) ------ (None) > --- WEAPON (5) ------- Linear Accelerator > --- INVENTORY (5) ---- Advanced Heat Sink Advanced Target Analyzer Advanced Remote Datajack Peak State ------------ > --- POWER ------------ Light Particle Reactor Micro Antimatter Reactor Micro Antimatter Reactor > --- PROPULSION ------- Biometal Medium Treads Flexi-carbon Leg Flexi-carbon Leg Flexi-carbon Leg Enhanced Flexi-carbon Leg > --- UTILITY ---------- Advanced Heat Sink Advanced Heat Sink Large Storage Unit Quantum Shading Machine Long-range Sensor Array Advanced Signal Interpreter Core Analyzer Improved Medium Armor Plating > --- WEAPON ----------- Phase Gun Phase Gun Phase Gun Phase Gun Phase Gun > --- INVENTORY -------- Light Antimatter Reactor Light Antimatter Reactor Light Antimatter Reactor Micro Antimatter Reactor Advanced Heat Sink Advanced Heat Sink Advanced Heat Sink Relay Coupler [Grunt] Phase Gun Quantum Rifle Nova Cannon Nova Cannon Nova Cannon Advanced Datajack Heavy Mace [Rating: 138] Favorites ----------- Power Light Nuclear Core Engine Reinforced Ion Engine Power Core Light Nuclear Core Reactor Micro Antimatter Reactor Propulsion Aluminum Leg Treads Light Treads Leg Aluminum Leg Hover Unit Antigrav Array Flight Unit Cooled Impulse Thruster Utility Large Storage Unit Device Advanced Heat Sink Storage Large Storage Unit Processor Core Analyzer Hackware Relay Coupler [NC] Protection Improved Light Armor Plating Weapon Heavy Laser Energy Gun Heavy Laser Energy Cannon Nova Cannon Ballistic Gun Improved Assault Rifle Ballistic Cannon Mass Driver Special Weapon Advanced Remote Datajack Impact Weapon Heavy Mace Special Melee Weapon Improved Datajack Build | -11 -10 -10 -9 -9 -9 -8 -8 -8 -8 -7 -6 -5 -5 -5 -5 -4 -4 -3 -3 ------- Run | Scr Mat Min Mat Min Exi Min Mat Gar Mat Fac Fac Fac Upp Upp Zhi Pro Fac Res Tes Slots Evolved 14 | . . . 2 . . . 2 . . 2 2 2 . . . . 2 2 . Power 2 | . . . . . . . . . . . 1 . . . . . . 1 . Propulsion 3 | . . . 2 . . . . . . . . 1 . . . . . . . Utility 6 | . . . . . . . 1 . . 2 . . . . . . 2 1 . Weapon 3 | . . . . . . . 1 . . . 1 1 . . . . . . . Parts Attached 331 | 7 9 1 31 1 14 1 38 36 16 20 12 27 2 10 5 3 13 84 1 Power 35 | 1 . 1 4 . . . 6 2 1 2 1 1 1 2 . . 1 12 . Engine 8 | 1 . . 3 . . . 1 . . . . . 1 1 . . . 1 . Core 18 | . . 1 1 . . . 5 2 1 2 1 1 . 1 . . 1 2 . Reactor 9 | . . . . . . . . . . . . . . . . . . 9 . Propulsion 80 | 2 1 . 11 . 4 . 14 8 4 1 5 7 . 3 . 1 3 16 . Treads 5 | . . . . . . . 2 . . . . 1 . . . . . 2 . Leg 73 | 2 1 . 11 . 4 . 12 8 4 1 5 6 . 3 . 1 3 12 . Wheel . | . . . . . . . . . . . . . . . . . . . . Hover 1 | . . . . . . . . . . . . . . . . . . 1 . Flight 1 | . . . . . . . . . . . . . . . . . . 1 . Utility 85 | 2 3 . 7 1 . 1 8 10 4 5 2 8 . 2 3 2 5 22 . Device 40 | 1 1 . 1 1 . . 3 3 2 . 2 5 . 1 2 1 4 13 . Storage 5 | 1 1 . 1 . . . 1 . . . . . . . . . 1 . . Processor 6 | . . . 1 . . . . . . 1 . 1 . . . . . 3 . Hackware 7 | . . . . . . . . 4 1 1 . . . . . . . 1 . Protection 27 | . 1 . 4 . . 1 4 3 1 3 . 2 . 1 1 1 . 5 . Artifact . | . . . . . . . . . . . . . . . . . . . . Weapon 131 | 2 5 . 9 . 10 . 10 16 7 12 4 11 1 3 2 . 4 34 1 Energy Gun 57 | 1 2 . 1 . 1 . 7 9 4 7 1 2 . 2 . . 1 19 . Energy Cannon 12 | . 3 . . . . . 1 . . . . 1 1 . . . . 5 1 Ballistic Gun 23 | 1 . . 6 . 5 . . . . . 2 5 . 1 . . 1 2 . Ballistic Cannon 2 | . . . . . . . . . . . . . . . . . 1 1 . Launcher . | . . . . . . . . . . . . . . . . . . . . Special Weapon 1 | . . . . . . . . . . . . . . . . . . 1 . Impact Weapon 17 | . . . 2 . 1 . 2 1 1 2 . 2 . . 1 . . 5 . Slashing Weapon . | . . . . . . . . . . . . . . . . . . . . Piercing Weapon . | . . . . . . . . . . . . . . . . . . . . Special Melee Weapon 19 | . . . . . 3 . . 6 2 3 1 1 . . 1 . 1 1 . Unidentified Prototypes 10 | . . . . . . . . . . . . 1 . . 4 . . 4 1 Parts Lost 87 | . . . 13 . . . . 3 3 4 . 1 1 8 . 3 2 49 . Power 17 | . . . 3 . . . . 1 1 1 . . 1 . . . 1 9 . Propulsion 29 | . . . 7 . . . . 1 1 1 . . . 3 . 1 . 15 . Utility 19 | . . . 2 . . . . 1 . 1 . 1 . 1 . 1 . 12 . Weapon 22 | . . . 1 . . . . . 1 1 . . . 4 . 1 1 13 . Highest Loss Streak 25 | . . . 8 . . . . 2 1 3 . 1 1 8 . 3 1 25 . To Critical Strikes 2 | . . . . . . . . . . . . . . . . . . 2 . Average Slot Usage (%) 95 | . 99 100 95 100 100 100 99 98 99 98 100 99 99 97 79 76 89 92 10 Engine 3 | . 14 11 7 11 11 11 . 3 . . . . 2 5 5 5 4 1 . Core 5 | . . 2 3 . . . 8 5 8 7 13 11 8 5 5 5 5 4 . Reactor 1 | . . . . . . . . . . . . . . . . . . 7 . Treads 1 | . . . . . . . 2 4 . . . 2 . . . . . 2 . Leg 28 | . 28 28 40 44 44 44 33 31 35 29 26 25 29 27 17 16 18 17 . Device 13 | . 11 14 5 7 11 . 9 8 8 7 12 13 17 17 14 17 25 19 . Storage 7 | . 14 14 11 11 11 11 9 9 9 7 6 5 5 5 5 5 5 3 . Processor 1 | . . . . 3 . . . . . . . . . . . . . 4 . Hackware 1 | . . . . . . . . 4 . 7 6 3 . . . . . . . Protection 5 | . 2 . 4 . . 11 9 3 9 13 6 4 5 5 5 4 5 5 . Energy Gun 15 | . 13 14 2 . 5 . 19 24 25 22 25 16 6 5 11 11 14 18 . Energy Cannon 1 | . 1 14 1 . . . . . . . . . 9 9 . . . 2 1 Ballistic Gun 6 | . 12 . 17 22 13 22 7 . . . . 10 11 10 11 7 5 1 . Naked Turns 33 | . . . . . . . . . . . . . . . . . . 33 . Heaviest Build 106 | 14 22 20 43 37 37 42 46 44 41 48 57 67 74 74 58 57 75 106 34 Greatest Support 123 | 20 20 20 40 40 50 50 60 50 50 50 62 96 96 96 60 73 98 123 26 Greatest Overweight (x) 1 | . 1 . 1 . . . . 1 . 1 1 1 . . . 1 . 1 1 Average Overweight (x) . | . . . . . . . . . . . . . . . . . . . . Largest Inventory Capacity 15 | 8 10 10 15 15 15 15 15 15 15 15 15 15 15 15 15 15 15 15 5 Average Capacity 14 | 7 9 10 14 15 15 15 15 15 15 15 15 15 15 15 15 15 15 14 5 Most Carried 15 | 3 10 10 15 15 15 15 15 15 15 15 15 15 15 15 14 13 14 15 5 Average Carried 13 | 1 7 9 12 14 14 14 14 14 14 14 10 14 14 14 12 11 11 13 3 Final Capacity 15 | 8 10 10 15 15 15 15 15 15 15 15 15 15 15 15 15 15 15 5 5 Final Carried 15 | 3 10 10 14 14 15 15 15 15 15 14 15 15 15 12 12 10 12 4 3 Class Distribution -------------------- 56% | Scavenger-Tank 20% | Scavenger-Mutant 8% | Mutant 8% | Scavenger-Gunner 5% | Scavenger-Skirmisher Dominant Class ---------------- Mutant | -10/Materials Mutant | -10/Mines Scavenger-Mutant | -9/Materials Scavenger-Mutant | -9/Mines Scavenger-Mutant | -9/Exiles Scavenger-Mutant | -8/Mines Scavenger-Tank | -8/Materials Scavenger-Gunner | -8/Garrison Scavenger-Tank | -8/Materials Scavenger-Tank | -7/Factory Scavenger-Tank | -6/Factory Scavenger-Tank | -5/Factory Scavenger-Tank | -5/Upper Caves Scavenger-Tank | -5/Upper Caves Scavenger-Tank | -5/Zhirov Scavenger-Tank | -4/Proximity Caves Scavenger-Tank | -4/Factory Scavenger-Tank | -3/Research Mutant | -3/Testing Resources | -11 -10 -10 -9 -9 -9 -8 -8 -8 -8 -7 -6 -5 -5 -5 -5 -4 -4 -3 -3 ----------- Run | Scr Mat Min Mat Min Exi Min Mat Gar Mat Fac Fac Fac Upp Upp Zhi Pro Fac Res Tes Matter Collected 5277 | 205 132 10 649 74 276 63 656 473 168 174 . 661 108 218 . 181 268 961 . Remotely . | . . . . . . . . . . . . . . . . . . . . Salvage Created 10461 | 140 121 89 1058 71 369 92 1192 511 346 370 . 1123 308 350 . 254 304 3763 . Parts 476 | 13 5 3 48 10 14 17 75 30 18 15 . 40 11 19 . 10 7 141 . Haulers Intercepted 12 | . . . 2 . . . 3 . 1 1 . 2 . . . . 1 2 . Recyclers Shooed 9 | . . 1 1 1 . . 1 . . . . 2 . . . . . 3 . Parts Field Recycled . | . . . . . . . . . . . . . . . . . . . . Retrieved Matter . | . . . . . . . . . . . . . . . . . . . . Parts Self-Destructed 32 | . . . . . . . . . . . . . 9 14 . 9 . . . Prevented . | . . . . . . . . . . . . . . . . . . . . Kills | -11 -10 -10 -9 -9 -9 -8 -8 -8 -8 -7 -6 -5 -5 -5 -5 -4 -4 -3 -3 ------- Run | Scr Mat Min Mat Min Exi Min Mat Gar Mat Fac Fac Fac Upp Upp Zhi Pro Fac Res Tes Combat Hostiles Destroyed 151 | . 2 . 19 3 . 8 24 10 4 5 . 12 5 11 . 5 4 39 . Melee 2 | . . . 1 . . . 1 . . . . . . . . . . . . Guns 128 | . 2 . 17 3 . 8 23 10 3 4 . 12 3 8 . 5 1 29 . Cannons 12 | . . . 1 . . . . . . . . . 2 1 . . 3 5 . AOE 2 | . . . . . . . . . . . . . . 2 . . . . . Classes Destroyed 15 | 2 2 . 4 1 1 . 1 . 1 1 . 1 . . . 1 . . . Worker 7 | . . . 1 . . . 1 . . . . 2 . . . . 1 2 . Builder 2 | . . . . . . . . . . . . 1 . . . . . 1 . Tunneler 4 | 2 . . . 1 . . . . 1 . . . . . . . . . . Hauler 12 | . . . 2 . . . 3 . 1 1 . 2 . . . . 1 2 . Recycler 12 | 1 . 1 1 . . . 1 . . . . 2 . . . . . 6 . Mechanic 2 | . . . . . . . . . 1 . . . . . . . . 1 . Operator 2 | . . . . . . . 1 . . . . . . . . . . 1 . Watcher 12 | . 1 . 1 . . . 3 . 1 . . 3 . . . . 1 2 . Swarmer 50 | . . . . 3 . 8 11 4 . . . 4 5 7 . 1 . 7 . Grunt 55 | . 2 . 15 . 2 . 7 3 3 2 . 5 . 4 . 1 . 11 . Brawler 1 | . . . 1 . . . . . . . . . . . . . . . . Duelist 2 | . . . . . . . . . . 1 . . . . . 1 . . . Sentry 21 | . . . 3 . . . 6 3 1 2 . 1 . . . . 2 3 . Hunter 10 | . . . . . 1 . . 3 . . . 2 . . . . . 4 . Programmer 19 | . . . . . . . . . . . . . . . . 2 2 15 . Best Kill Streak 12 | 2 2 1 6 3 . 5 5 5 3 2 . 12 5 11 . 5 2 11 . Combat Bots Only 11 | . 2 . 6 3 . 5 4 5 2 2 . 6 5 11 . 5 2 4 . Max Kills in Single Turn 3 | 1 1 1 2 2 1 2 2 2 3 1 . 2 2 3 . 1 2 2 . Gunslinging 1 | . . . 1 1 . . . 1 1 . . 1 . . . . . 1 . Exploded 2 | . . . . . . . . . . . . . . 2 . . . . . Melee 1 | . . . 1 . . . 1 . . . . . . . . . . . . Uniques/NPCs Destroyed . | . . . . . . . . . . . . . . . . . . . . Combat | -11 -10 -10 -9 -9 -9 -8 -8 -8 -8 -7 -6 -5 -5 -5 -5 -4 -4 -3 -3 -------- Run | Scr Mat Min Mat Min Exi Min Mat Gar Mat Fac Fac Fac Upp Upp Zhi Pro Fac Res Tes Damage Taken 15919 | . 172 . 1686 37 22 160 679 707 507 764 129 789 220 1638 . 234 703 6981 491 Core 2236 | . 40 . 245 6 . 37 70 70 71 34 . 69 28 193 . 17 46 1123 187 Absorbed by Shields . | . . . . . . . . . . . . . . . . . . . . Regen/Repaired (Parts) 225 | . 43 . . . . . 182 . . . . . . . . . . . . Core Remaining (%) 78 | 100 . 84 . . . 28 . . 61 95 100 . . . . 62 96 . . Volleys Fired 463 | 4 14 2 86 5 36 9 52 24 13 17 . 33 9 20 . 13 12 113 1 Largest 5 | 2 2 2 2 2 2 2 3 3 3 3 . 5 5 5 . 4 5 5 1 Hottest 496 | 60 60 100 100 46 88 47 187 194 194 207 . 300 315 315 . 208 323 496 66 Shots Fired 1522 | 8 28 4 169 10 72 18 155 73 37 45 . 156 39 82 . 44 60 521 1 Gun 1429 | 8 28 2 166 10 72 18 155 73 37 45 . 155 24 63 . 44 48 481 . Cannon 90 | . . 2 3 . . . . . . . . 1 15 19 . . 12 37 1 Launcher . | . . . . . . . . . . . . . . . . . . . . Special 3 | . . . . . . . . . . . . . . . . . . 3 . Kinetic 516 | 4 14 . 146 10 59 18 53 . . . . 62 15 40 . 18 24 52 1 Thermal 1003 | 4 14 4 23 . 13 . 102 73 37 45 . 94 24 42 . 26 36 466 . Explosive . | . . . . . . . . . . . . . . . . . . . . Electromagnetic . | . . . . . . . . . . . . . . . . . . . . Robot Hit Streak 41 | 3 8 3 41 6 15 6 11 9 9 11 . 15 6 8 . 8 11 18 . Robot Miss Streak 10 | 1 2 . 3 1 2 6 3 4 3 2 . 10 4 4 . 5 3 7 . Penetration Max 1 | . . . . . . . . . . . . . . . . 1 . . . Secondary Targets 23 | . 1 . 4 1 . 2 2 2 1 . . 3 . . . . . 7 . Max Gunslinging Chain 1 | . 1 . 1 1 . 1 1 1 1 . . 1 . . . . . 1 . Shots Hit Robots 957 | 5 19 3 132 7 59 12 99 29 28 40 2 92 14 40 4 25 45 302 . Core Hits 478 | 7 7 2 44 5 14 8 55 19 11 12 . 79 8 27 . 21 25 134 . Critical Kills 3 | . . . 1 . . . . . . . . . . . . . . 2 . Critical Parts Destroyed 5 | . . . . . 1 . . . . 1 . . . 1 . . 2 . . Critical Strikes 43 | . . . 1 . 3 . 4 1 . 4 . 5 . 1 . 3 4 17 . Burn 34 | . . . . . 2 . 4 1 . 3 . 5 . . . 3 1 15 . Meltdown 1 | . . . . . . . . . . . . . . . . . . 1 . Destroy 6 | . . . 1 . 1 . . . . . . . . 1 . . 2 1 . Blast 1 | . . . . . . . . . . . . . . . . . 1 . . Smash 1 | . . . . . . . . . . 1 . . . . . . . . . Melee Attacks 102 | . . . 2 . 33 . 7 13 11 7 2 5 . . 4 . 2 16 . Impact 65 | . . . 2 . 27 . 7 3 5 2 . 3 . . . . . 16 . Slashing . | . . . . . . . . . . . . . . . . . . . . Piercing . | . . . . . . . . . . . . . . . . . . . . Sneak Attacks 23 | . . . . . 6 . . . 3 4 2 2 . . 4 . 2 . . Combat Hostiles 6 | . . . . . 6 . . . . . . . . . . . . . . Follow-up Attacks . | . . . . . . . . . . . . . . . . . . . . Damage Inflicted 20126 | 153 221 42 1985 135 705 205 1803 430 488 700 . 1789 499 1056 . 574 1260 8068 13 Guns 17938 | 69 221 21 1908 116 705 205 1741 430 488 622 . 1789 299 695 . 574 913 7142 . Cannons 1714 | . . 17 51 . . . . . . . . . 200 201 . . 347 898 . Explosions 160 | . . . . . . . . . . . . . . 160 . . . . . Melee 162 | . . . 26 . . . 58 . . 78 . . . . . . . . . Ramming 152 | 84 . 4 . 19 . . 4 . . . . . . . . . . 28 13 Kinetic 6316 | 25 102 . 1722 116 581 205 518 . . . . 856 191 485 . 231 586 698 . Thermal 13496 | 44 119 38 237 . 124 . 1223 430 488 622 . 933 308 571 . 343 674 7342 . Explosive . | . . . . . . . . . . . . . . . . . . . . Electromagnetic . | . . . . . . . . . . . . . . . . . . . . Impact 162 | . . . 26 . . . 58 . . 78 . . . . . . . . . Slashing . | . . . . . . . . . . . . . . . . . . . . Piercing . | . . . . . . . . . . . . . . . . . . . . Highest Corruption 23 | . . . . . . . 5 5 6 1 . . . . . 2 2 18 23 Average Corruption 5 | . . . . . . . 4 5 5 1 . . . . . 1 1 7 20 Corruption Purged 5 | . . . . . . . . . . . . . . . . . . 5 . Corruption Blocked . | . . . . . . . . . . . . . . . . . . . . Effects 149 | . . . . . . . 24 39 16 . . . . . . 2 1 64 3 Message Errors 35 | . . . . . . . 8 10 3 . . . . . . 1 . 13 . Matter Fused 27 | . . . . . . . 5 6 5 . . . . . . . . 11 . Heat Flow Errors 17 | . . . . . . . . 7 1 . . . . . . . . 8 1 Energy Discharges 15 | . . . . . . . 3 4 3 . . . . . . 1 . 4 . Parts Rejected 2 | . . . . . . . 1 . . . . . . . . . . 1 . Data Loss (minor) 19 | . . . . . . . 3 2 2 . . . . . . . 1 11 . Data Loss (major) 14 | . . . . . . . 2 4 1 . . . . . . . . 6 1 Misfires 6 | . . . . . . . . 4 . . . . . . . . . 2 . Alerts 2 | . . . . . . . 1 . . . . . . . . . . 1 . Misdirections 2 | . . . . . . . . . . . . . . . . . . 1 1 Weapon Failures 10 | . . . . . . . 1 2 1 . . . . . . . . 6 . Overload Shots . | . . . . . . . . . . . . . . . . . . . . Overflow Damage 98 | . . . . . . . . . . 48 . . 23 8 . . 19 . . Projectiles 50 | . . . . . . . . . . . . . 23 8 . . 19 . . Explosions . | . . . . . . . . . . . . . . . . . . . . Melee 48 | . . . . . . . . . . 48 . . . . . . . . . Knockbacks 2 | . . . . . . . . . . 1 . . . . . . 1 . . Impact 1 | . . . . . . . . . . 1 . . . . . . . . . Kinetic 1 | . . . . . . . . . . . . . . . . . 1 . . Secondary . | . . . . . . . . . . . . . . . . . . . . Self-Inflicted Damage 157 | . . . . . . . . 100 . . . . . 52 . . . . 5 Shots 2 | . . . . . . . . 1 . . . . . 1 . . . . . Rammed 4 | . . . . . . . . . . . . . . . . . . 1 3 Targets Rammed 44 | 30 . 1 . 4 . . 1 . . . . . . . . . . 5 3 Kicked 40 | 30 . 1 . 4 . . 1 . . . . . . . . . . 4 . Crushed . | . . . . . . . . . . . . . . . . . . . . Highest Temperature 534 | . 183 90 336 . 300 . 334 334 279 276 . 343 329 388 . 54 363 534 210 Average Temperature 128 | . 95 47 106 . 136 . 71 105 126 141 . 127 153 142 . 24 114 170 210 Received Heat Transfer 2720 | . 90 . 771 . 9 . 225 189 72 279 . 126 . 468 . 95 90 306 . Effects 33 | . . . . . . . 1 . . . . 3 2 2 . . . 25 . Shutdowns 11 | . . . . . . . . . . . . . . 2 . . . 9 . Energy Bleed 4 | . . . . . . . . . . . . . . . . . . 4 . Interference 13 | . . . . . . . . . . . . 3 2 . . . . 8 . Matter Decay 1 | . . . . . . . 1 . . . . . . . . . . . . Short Circuit 1 | . . . . . . . . . . . . . . . . . . 1 . Damage (minor) 3 | . . . . . . . . . . . . . . . . . . 3 . Siege Activations . | . . . . . . . . . . . . . . . . . . . . Robots Corrupted . | . . . . . . . . . . . . . . . . . . . . Combat Hostiles . | . . . . . . . . . . . . . . . . . . . . Parts Fried 1 | . . . . . . . . . . 1 . . . . . . . . . Impact Corruptions 2 | . . . . . . . . . . 2 . . . . . . . . . Robots Melted 6 | . . . . . . . . . 1 . . . . . . . . 5 . Combat Hostiles 6 | . . . . . . . . . 1 . . . . . . . . 5 . Parts Melted 73 | . . 1 . . . . 9 1 3 3 . 2 1 1 . 2 4 46 . Heat Transferred 25865 | 100 275 87 642 . 444 . 2738 962 999 1443 . 2331 498 936 . 777 999 12634 . Parts Sabotaged . | . . . . . . . . . . . . . . . . . . . . Parts Stolen . | . . . . . . . . . . . . . . . . . . . . Parts Stripped . | . . . . . . . . . . . . . . . . . . . . Power Chain Reactions . | . . . . . . . . . . . . . . . . . . . . Missiles Intercepted . | . . . . . . . . . . . . . . . . . . . . Alert | -11 -10 -10 -9 -9 -9 -8 -8 -8 -8 -7 -6 -5 -5 -5 -5 -4 -4 -3 -3 ------- Run | Scr Mat Min Mat Min Exi Min Mat Gar Mat Fac Fac Fac Upp Upp Zhi Pro Fac Res Tes Peak Influence 805 | 10 167 144 340 159 . 180 382 805 527 245 112 358 . . . . 154 387 245 Initial 391 | . 3 64 55 84 . . 70 65 391 148 36 1 . . . . . 75 215 Average 202 | 7 86 83 189 156 . 128 163 471 440 152 52 136 . . . . 35 199 153 Maximum Alert Level 3 | . . . 1 . . . 1 3 2 1 . 1 . . . . . 1 1 Low Security (%) 58 | 100 100 100 57 100 . 100 57 10 . 82 100 60 . . . . 100 53 65 Level 1 31 | . . . 42 . . . 42 27 46 17 . 39 . . . . . 46 34 Level 2 8 | . . . . . . . . 50 53 . . . . . . . . . . Level 3 1 | . . . . . . . . 11 . . . . . . . . . . . Level 4 . | . . . . . . . . . . . . . . . . . . . . Level 5 . | . . . . . . . . . . . . . . . . . . . . High Security . | . . . . . . . . . . . . . . . . . . . . Max Security . | . . . . . . . . . . . . . . . . . . . . Squads Dispatched 28 | . 2 . 2 . . . 2 . 2 1 . 4 . 1 . . 2 11 1 Investigation 7 | . 1 . 1 . . . . . 2 . . 1 . 1 . . . 1 . Extermination 6 | . . . . . . . . . . 1 . . . . . . 1 4 . Reinforcement 12 | . 1 . 1 . . . 2 . . . . 3 . . . . 1 3 1 Assault . | . . . . . . . . . . . . . . . . . . . . Garrison 3 | . . . . . . . . . . . . . . . . . . 3 . Intercept . | . . . . . . . . . . . . . . . . . . . . Searches Triggered . | . . . . . . . . . . . . . . . . . . . . Construction Impeded 1 | . . . . . . . . . . . . . . . . . . 1 . Haulers Reinforced 2 | . . . . . . . . . . . . 2 . . . . . . . Active Scanning Responses . | . . . . . . . . . . . . . . . . . . . . Cargo Convoy Interrupts . | . . . . . . . . . . . . . . . . . . . . Stealth | -11 -10 -10 -9 -9 -9 -8 -8 -8 -8 -7 -6 -5 -5 -5 -5 -4 -4 -3 -3 --------- Run | Scr Mat Min Mat Min Exi Min Mat Gar Mat Fac Fac Fac Upp Upp Zhi Pro Fac Res Tes Distress Signals 15 | . . . 2 . . . 2 . 1 . 1 1 . . . . 1 6 1 Communications Jammed . | . . . . . . . . . . . . . . . . . . . . Distress Signals . | . . . . . . . . . . . . . . . . . . . . Times Spotted 271 | . 4 3 28 2 . 8 35 24 12 10 1 25 7 14 . 5 7 80 6 Peak Tracking Total 16 | . 2 3 5 2 . 5 4 7 4 4 2 5 5 11 . 5 3 16 6 Tactical Retreats 21 | . . . . . . . 2 4 . . 1 5 1 1 . . . 6 1 Traps | -11 -10 -10 -9 -9 -9 -8 -8 -8 -8 -7 -6 -5 -5 -5 -5 -4 -4 -3 -3 ------- Run | Scr Mat Min Mat Min Exi Min Mat Gar Mat Fac Fac Fac Upp Upp Zhi Pro Fac Res Tes Traps Triggered 11 | . 1 . . . . . 3 3 . . 1 . . . . . 1 2 . Indirectly . | . . . . . . . . . . . . . . . . . . . . Trap Hack Attempts 45 | . . . . . . . . 34 . . . . . . . . . 11 . Triggered . | . . . . . . . . . . . . . . . . . . . . Disarmed 1 | . . . . . . . . . . . . . . . . . . 1 . Reprogrammed 9 | . 5 . . . . . . 2 . . . . . . . . . 2 . Reused . | . . . . . . . . . . . . . . . . . . . . Traps Extracted . | . . . . . . . . . . . . . . . . . . . . Installed . | . . . . . . . . . . . . . . . . . . . . Triggered . | . . . . . . . . . . . . . . . . . . . . Machines | -11 -10 -10 -9 -9 -9 -8 -8 -8 -8 -7 -6 -5 -5 -5 -5 -4 -4 -3 -3 ---------- Run | Scr Mat Min Mat Min Exi Min Mat Gar Mat Fac Fac Fac Upp Upp Zhi Pro Fac Res Tes Machines Disabled 21 | . 1 1 1 . 1 . . 8 1 . . . . 4 . . 2 1 1 Max in Single Turn 4 | . 1 1 1 . 1 . . 2 1 . . . . 4 . . 1 1 1 Garrison Access 5 | . . . . . . . . . . . 1 1 . . . . 1 2 . Garrison Relay 4 | . . . . . . . . 4 . . . . . . . . . . . Phase Generator 1 | . . . . . . . . 1 . . . . . . . . . . . Machines Sabotaged . | . . . . . . . . . . . . . . . . . . . . Garrisons Compromised . | . . . . . . . . . . . . . . . . . . . . Overloaded Fab Kills . | . . . . . . . . . . . . . . . . . . . . Hacking | -11 -10 -10 -9 -9 -9 -8 -8 -8 -8 -7 -6 -5 -5 -5 -5 -4 -4 -3 -3 --------- Run | Scr Mat Min Mat Min Exi Min Mat Gar Mat Fac Fac Fac Upp Upp Zhi Pro Fac Res Tes Machines Accessed 64 | . 4 . 4 . 3 . 13 . 4 2 6 4 . 1 8 . 3 11 1 Terminals 31 | . 2 . 4 . . . 8 . 2 1 4 . . 1 . . 2 6 1 Fabricators 4 | . . . . . . . . . . . 1 2 . . . . . 1 . Repair Stations 4 | . 1 . . . . . 2 . 1 . . . . . . . . . . Recycling Units 2 | . 1 . . . . . . . . . . 1 . . . . . . . Scanalyzers 6 | . . . . . . . 2 . 1 1 . . . . . . . 2 . Garrison Access 6 | . . . . . . . 1 . . . 1 1 . . . . 1 2 . Total Hacks 204 | . 15 . 16 . 7 . 42 . 17 3 18 6 . 3 47 . 4 22 4 Successful 134 | . 10 . 5 . 7 . 22 . 9 3 11 5 . 3 47 . 2 9 1 Failed 69 | . 5 . 10 . . . 20 . 8 . 7 1 . . . . 2 13 3 Catastrophic 17 | . 1 . 2 . . . 3 . 1 . 3 . . . . . 2 3 2 Database Lockouts 1 | . . . 1 . . . . . . . . . . . . . . . . Manual 51 | . 9 . 8 . 7 . 14 . 2 . 6 1 . . . . . 4 . Terminals 100 | . 10 . 16 . . . 27 . 6 1 14 . . 3 . . 3 16 4 Fabricators 7 | . . . . . . . . . . . 2 4 . . . . . 1 . Repair Stations 17 | . 3 . . . . . 11 . 3 . . . . . . . . . . Recycling Units 3 | . 2 . . . . . . . . . . 1 . . . . . . . Scanalyzers 15 | . . . . . . . 2 . 8 2 . . . . . . . 3 . Garrison Access 8 | . . . . . . . 2 . . . 2 1 . . . . 1 2 . Terminal Hacks 98 | . 7 . 5 . 7 . 10 . 2 1 8 . . 3 47 . 1 6 1 Record 48 | . . . . . 7 . . . . . 1 . . 3 35 . . 2 . Part Schematic 4 | . . . . . . . . . . . . . . . 4 . . . . Robot Analysis 6 | . 1 . . . . . 1 . . . . . . . 4 . . . . Prototype ID Bank 19 | . 4 . 5 . . . 4 . . . 2 . . . 4 . . . . Open DSF 1 | . . . . . . . . . . 1 . . . . . . . . . Branch Access Points 2 | . . . . . . . . . 1 . 1 . . . . . . . . Emergency Access Points 2 | . . . . . . . . . . . 1 . . . . . . 1 . Alert Level 1 | . . . . . . . 1 . . . . . . . . . . . . Unreport Threat 4 | . . . . . . . 2 . . . . . . . . . . 1 1 Locate Traps 4 | . . . . . . . 1 . 1 . 1 . . . . . . 1 . Reprogram Traps 1 | . 1 . . . . . . . . . . . . . . . . . . Patrol Status 1 | . . . . . . . . . . . 1 . . . . . . . . Hauler Manifests 2 | . 1 . . . . . . . . . . . . . . . 1 . . Registered Components 2 | . . . . . . . 1 . . . 1 . . . . . . . . Zone Layout 1 | . . . . . . . . . . . . . . . . . . 1 . Fabricator Hacks 3 | . . . . . . . . . . . . 3 . . . . . . . Network Status 1 | . . . . . . . . . . . . 1 . . . . . . . Load Schematic 1 | . . . . . . . . . . . . 1 . . . . . . . Build 1 | . . . . . . . . . . . . 1 . . . . . . . Repair Station Hacks 12 | . 2 . . . . . 9 . 1 . . . . . . . . . . Scan Component 7 | . 1 . . . . . 5 . 1 . . . . . . . . . . Repair 5 | . 1 . . . . . 4 . . . . . . . . . . . . Recycling Unit Hacks . | . . . . . . . . . . . . . . . . . . . . Scanalyzer 11 | . . . . . . . 2 . 6 2 . . . . . . . 1 . Insert Component 8 | . . . . . . . 2 . 4 1 . . . . . . . 1 . Analyze 3 | . . . . . . . . . 2 1 . . . . . . . . . Garrison Access Hacks 7 | . . . . . . . 1 . . . 2 1 . . . . 1 2 . Unlock Access 1 | . . . . . . . 1 . . . . . . . . . . . . Seal Access 5 | . . . . . . . . . . . 1 1 . . . . 1 2 . Coupler Status 1 | . . . . . . . . . . . 1 . . . . . . . . Unauthorized Hacks 3 | . 1 . . . . . . . . . 1 1 . . . . . . . Terminals . | . . . . . . . . . . . . . . . . . . . . Fabricators 2 | . . . . . . . . . . . 1 1 . . . . . . . Report 2 | . . . . . . . . . . . 1 1 . . . . . . . Repair Stations . | . . . . . . . . . . . . . . . . . . . . Recycling Units 1 | . 1 . . . . . . . . . . . . . . . . . . Tunnel 1 | . 1 . . . . . . . . . . . . . . . . . . Scanalyzers . | . . . . . . . . . . . . . . . . . . . . Garrison Access . | . . . . . . . . . . . . . . . . . . . . Data Cores Recovered 1 | . . . . . . . . . . . . . . . . . . 1 . Used 1 | . . . . . . . . . . . . . . . . . . 1 . Hacking Detections 44 | . 3 . 4 . . . 11 . 4 . 6 3 . 1 . . 2 9 1 Full Trace Events 6 | . . . 1 . . . . . 2 . . 1 . 1 . . . 1 . Feedback Events . | . . . . . . . . . . . . . . . . . . . . Feedback Blocked . | . . . . . . . . . . . . . . . . . . . . Robot Schematics Acquired . | . . . . . . . . . . . . . . . . . . . . Robots Built . | . . . . . . . . . . . . . . . . . . . . Authchips . | . . . . . . . . . . . . . . . . . . . . Time . | . . . . . . . . . . . . . . . . . . . . Total Robot Build Rating . | . . . . . . . . . . . . . . . . . . . . Part Schematics Acquired 7 | . . . . . . . . . 2 1 . . . . 4 . . . . Parts Built 2 | . . . . . . . . . . . . 2 . . . . . . . Authchips . | . . . . . . . . . . . . . . . . . . . . Time 47 | . . . . . . . . . . . . 47 . . . . . . . Total Part Build Rating 10 | . . . . . . . . . . . . 10 . . . . . . . Parts Repaired 5 | . 1 . . . . . 4 . . . . . . . . . . . . Time 178 | . 26 . . . . . 152 . . . . . . . . . . . . Parts Recycled . | . . . . . . . . . . . . . . . . . . . . Recycled Matter . | . . . . . . . . . . . . . . . . . . . . Retrieved Matter . | . . . . . . . . . . . . . . . . . . . . Retrieved Components . | . . . . . . . . . . . . . . . . . . . . Parts Scanalyzed 4 | . . . . . . . . . 2 1 . . . . . . . 1 . Part Schematics Acquired 3 | . . . . . . . . . 2 1 . . . . . . . . . Parts Damaged 2 | . . . . . . . . . 1 1 . . . . . . . . . Bothacking | -11 -10 -10 -9 -9 -9 -8 -8 -8 -8 -7 -6 -5 -5 -5 -5 -4 -4 -3 -3 ------------ Run | Scr Mat Min Mat Min Exi Min Mat Gar Mat Fac Fac Fac Upp Upp Zhi Pro Fac Res Tes Used RIF Installer 1 | . . . . . . . . 1 . . . . . . . . . . . Robots Hacked 22 | . . . . . . . . 7 5 2 1 1 . . 3 . 1 2 . Non-combat 8 | . . . . . . . . . 3 2 1 1 . . . . 1 . . Combat 14 | . . . . . . . . 7 2 . . . . . 3 . . 2 . Robot Hacks Applied 26 | . . . . . . . . 7 5 4 1 1 . . 4 . 2 2 . parse_system 4 | . . . . . . . . . . . . . . . 4 . . . . no_distress 1 | . . . . . . . . . . . . . . . . . 1 . . find_fabricator 2 | . . . . . . . . . . 1 . . . . . . 1 . . drop_inventory 1 | . . . . . . . . . . 1 . . . . . . . . . locate_stockpiles 1 | . . . . . . . . . . 1 . . . . . . . . . find_recycling 1 | . . . . . . . . . . . 1 . . . . . . . . ignore_parts 2 | . . . . . . . . . 2 . . . . . . . . . . find_station 1 | . . . . . . . . . 1 . . . . . . . . . . check_alert 1 | . . . . . . . . . . . . 1 . . . . . . . mark_security 1 | . . . . . . . . . . 1 . . . . . . . . . streamctrl_high 6 | . . . . . . . . 4 . . . . . . . . . 2 . formatsys_high 5 | . . . . . . . . 3 2 . . . . . . . . . . Relay Couplers Released 20 | . . . . . . . . 17 . . . . . . . . . 3 . Machine Destruction 17 | . . . . . . . . 17 . . . . . . . . . . . Programmers 3 | . . . . . . . . . . . . . . . . . . 3 . Attached 7 | . . . . . . . . 4 1 1 . . . . . . . 1 . Fabnet Peak Effective % . | . . . . . . . . . . . . . . . . . . . . Robots Rewired 3 | . . . . . 3 . . . . . . . . . . . . . . Allies Hacked . | . . . . . . . . . . . . . . . . . . . . Hacks Repelled . | . . . . . . . . . . . . . . . . . . . . Allies | -11 -10 -10 -9 -9 -9 -8 -8 -8 -8 -7 -6 -5 -5 -5 -5 -4 -4 -3 -3 -------- Run | Scr Mat Min Mat Min Exi Min Mat Gar Mat Fac Fac Fac Upp Upp Zhi Pro Fac Res Tes Total Allies 18 | . . 3 . 1 3 . . 7 2 . . . . . . . . 2 . Largest Group 3 | . . 3 2 1 2 . . 2 2 . . . . . . . . 2 . Highest-Rated Group 94 | . . 40 24 31 52 . . 31 45 . . . . . . . . 94 . Highest-Rated Ally 47 | . . 16 16 31 31 . . 16 29 . . . . . . . . 47 . Total Orders . | . . . . . . . . . . . . . . . . . . . . Ally Attacks 103 | . . 13 26 . 4 . . 25 30 . . . . . . . . 5 . Total Damage 1109 | . . 94 284 . 43 . . 302 309 . . . . . . . . 77 . Kills 14 | . . 3 4 . . . . 5 1 . . . . . . . . 1 . Allies Corrupted . | . . . . . . . . . . . . . . . . . . . . Allies Melted . | . . . . . . . . . . . . . . . . . . . . Intel | -11 -10 -10 -9 -9 -9 -8 -8 -8 -8 -7 -6 -5 -5 -5 -5 -4 -4 -3 -3 ------- Run | Scr Mat Min Mat Min Exi Min Mat Gar Mat Fac Fac Fac Upp Upp Zhi Pro Fac Res Tes Robot Analysis Total 6 | . 1 . . . . . 1 . . . . . . . 4 . . . . Derelict Logs Recovered 5 | . . . . . . . . . . . . . 2 1 . 2 . . . Drone Launches . | . . . . . . . . . . . . . . . . . . . . Drone Recoveries . | . . . . . . . . . . . . . . . . . . . . Exploration | -11 -10 -10 -9 -9 -9 -8 -8 -8 -8 -7 -6 -5 -5 -5 -5 -4 -4 -3 -3 ------------- Run | Scr Mat Min Mat Min Exi Min Mat Gar Mat Fac Fac Fac Upp Upp Zhi Pro Fac Res Tes Turns Passed 15780 | 448 358 159 955 304 1216 80 1743 1707 439 611 530 1015 626 721 246 579 738 3264 41 Spaces Moved 9656 | 321 209 105 435 108 798 41 971 1025 279 375 275 615 477 514 189 399 474 1995 51 Core 68 | 10 . . . . . . . . . . . . . . . . . 58 . Treads . | . . . . . . . . . . . . . . . . . . . . Legs 9392 | 311 209 105 435 108 798 41 971 1025 279 375 275 615 477 514 189 399 474 1792 . Wheels . | . . . . . . . . . . . . . . . . . . . . Hover 171 | . . . . . . . . . . . . . . . . . . 120 51 Flight 25 | . . . . . . . . . . . . . . . . . . 25 . Fastest Speed 35 | 50 120 120 120 120 120 125 125 120 120 120 120 120 120 120 120 120 120 35 60 Average Speed 120 | 117 123 120 130 120 122 125 125 120 120 120 134 120 120 120 120 123 120 115 62 Slowest Speed 190 | 120 190 120 190 120 125 125 126 190 120 190 190 190 120 120 120 190 120 190 110 Overloaded Moves . | . . . . . . . . . . . . . . . . . . . . Propulsion Burnouts . | . . . . . . . . . . . . . . . . . . . . Robots Hopped . | . . . . . . . . . . . . . . . . . . . . Cave-ins Triggered 1 | . . . . . . . . . 1 . . . . . . . . . . Teleports 1 | . . . . . . . . . . . . . . . 1 . . . . Exploration Rate (%) 39 | 16 39 35 37 29 91 8 83 95 32 10 12 13 58 69 62 48 12 38 12 Regions Visited 19 Branch Regions 9 Pre-discovered Areas 5 | . 1 . . . . . . . . . . . . . 3 1 . . . Known Exits Taken 2 | . . . . . . . 1 . . . . 1 . . . . . . . Unknown Exits Taken 16 | 1 1 1 1 1 1 1 . . 1 1 1 . 1 1 1 1 1 1 . Scrap Searched 7 | . . . . 2 . . . . . . . . 2 2 . 1 . . . Spaces Dug 51 | . . . 1 . 15 . 3 2 5 . . 4 . 7 . . . 14 . Terrain Destroyed 247 | . . . 1 . 15 . 3 145 5 . . 5 13 27 . . 5 28 . Melee 43 | . . . 1 . 15 . 3 2 5 . . 3 . . . . . 14 . Projectile 49 | . . . . . . . . . . . . 2 13 15 . . 5 14 . AOE 155 | . . . . . . . . 143 . . . . . 12 . . . . . Terrain Rammed . | . . . . . . . . . . . . . . . . . . . . Walls Destroyed . | . . . . . . . . . . . . . . . . . . . . Machines Disabled . | . . . . . . . . . . . . . . . . . . . . Actions | -11 -10 -10 -9 -9 -9 -8 -8 -8 -8 -7 -6 -5 -5 -5 -5 -4 -4 -3 -3 --------- Run | Scr Mat Min Mat Min Exi Min Mat Gar Mat Fac Fac Fac Upp Upp Zhi Pro Fac Res Tes Total 12633 | 377 280 135 649 271 912 52 1382 1435 342 490 434 797 509 569 209 456 613 2661 60 Wait 1476 | 4 31 19 50 153 10 . 211 243 8 54 135 71 17 18 2 40 96 313 1 Move 9636 | 320 208 104 434 107 797 40 970 1024 277 374 274 614 476 513 188 398 473 1994 51 Hop . | . . . . . . . . . . . . . . . . . . . . Pick Up 311 | 11 13 4 32 1 10 1 55 25 10 12 7 26 3 4 4 1 13 78 1 Fast Attach . | . . . . . . . . . . . . . . . . . . . . Attach 160 | 7 3 . 19 . 2 1 12 11 4 9 4 7 2 7 6 3 9 53 1 Detach 7 | . . . 1 . . . . . . . . . . 2 2 . 1 1 . Swap 173 | . 6 1 12 1 12 . 26 25 12 11 8 20 . 3 1 . 4 31 . Drop 197 | 1 5 4 13 . 9 1 48 21 6 6 4 21 2 2 2 1 3 46 2 Fire 463 | 4 14 2 86 5 36 9 52 24 13 17 . 33 9 20 . 13 12 113 1 Melee 102 | . . . 2 . 33 . 7 13 11 7 2 5 . . 4 . 2 16 . Ram 4 | . . . . . . . . . . . . . . . . . . 1 3 Kick 40 | 30 . 1 . 4 . . 1 . . . . . . . . . . 4 . Crush . | . . . . . . . . . . . . . . . . . . . . Escape Stasis 16 | . . . . . . . . 15 1 . . . . . . . . . . Rewire 3 | . . . . . 3 . . . . . . . . . . . . . . Trap 45 | . . . . . . . . 34 . . . . . . . . . 11 . Miscellaneous . | . . . . . . . . . . . . . . . . . . . . Route ------- -11/Scrapyard -10/Materials -10/Mines -9/Materials -9/Mines (discovered 2 exits: *Mat / *Exi) -9/Exiles (discovered 2 exits: [*Min x2]) -8/Mines -8/Materials (discovered 3 exits: *Fac x2 / Gar) -8/Garrison (discovered 3 exits: *Mat x3) -8/Materials -7/Factory (discovered 3 exits: *Fac / [*Low x2]) -6/Factory (discovered 3 exits: *Fac / Low x2) -5/Factory -5/Upper Caves -5/Upper Caves -5/Zhirov -4/Proximity Caves -4/Factory -3/Research (discovered 3 exits: *Res / Arm / *Tes) -3/Testing History --------- Turn | Location | Event 2 | -11/Scrapyard | Met Revision 17 7 | -11/Scrapyard | Discovered new exit (range 15) 449 | -11/Scrapyard | Entered Materials 450 | -10/Materials | Build established: Mutant 711 | -10/Materials | Discovered new exit (range 14) 752 | -10/Materials | Repaired Aluminum Leg 807 | -10/Materials | Entered Mines 841 | -10/Mines | Assisted by bots powering up and referring to "LRC-V3" 931 | -10/Mines | Discovered new exit (range 5) 966 | -10/Mines | Entered Materials 966 | -9/Materials | Accompanied by 2 allies 966 | -9/Materials | Evolved 2 slots: Propulsion x2 1282 | -9/Materials | Lost 4 parts (1p2n1u) 1505 | -9/Materials | Discovered new exit (range 6) 1634 | -9/Materials | Build established: Scavenger-Mutant 1705 | -9/Materials | Core integrity fell below 50% 1734 | -9/Materials | Lost 8 parts (2p4n1u1w) 1876 | -9/Materials | Central database locked down 1921 | -9/Materials | Entered Mines 2204 | -9/Mines | Discovered new exit (range 10) 2207 | -9/Mines | Received a Mining Laser from a helpful Derelict 2219 | -9/Mines | Deemed a non-threat by the Exiles lab entrance 2219 | -9/Mines | Discovered new exit (range 5) 2225 | -9/Mines | Entered Exiles 2225 | -9/Exiles | Found Exiles lab destroyed 2225 | -9/Exiles | Accompanied by 1 ally 2247 | -9/Exiles | Discovered new exit (range 15) 2779 | -9/Exiles | Discovered new exit (range 14) 3441 | -9/Exiles | Entered Mines 3496 | -8/Mines | Discovered new exit (range 6) 3521 | -8/Mines | Entered Materials 3521 | -8/Materials | Evolved 2 slots: Utility x1, Weapon x1 3814 | -8/Materials | Repaired Carbon-fiber Leg 3836 | -8/Materials | Build established: Scavenger-Tank 3853 | -8/Materials | Repaired Carbon-fiber Leg 3930 | -8/Materials | Discovered new exit (range 11) 4603 | -8/Materials | Discovered new exit (range 11) 4702 | -8/Materials | Repaired Carbon-fiber Leg 4741 | -8/Materials | Repaired Lgt. Nuclear Core 5263 | -8/Materials | Identified exit to Garrison 5264 | -8/Materials | Entered Garrison 5271 | -8/Garrison | Installed Relay Interface Framework 5308 | -8/Garrison | Triggered checkpoint 5329 | -8/Garrison | Garrison Relay disabled 5498 | -8/Garrison | Triggered checkpoint 5811 | -8/Garrison | Build established: Scavenger-Mutant 5860 | -8/Garrison | Discovered new exit (range 14) 5913 | -8/Garrison | Phase Generator disabled 6042 | -8/Garrison | Triggered checkpoint 6091 | -8/Garrison | Garrison Relay disabled 6237 | -8/Garrison | Garrison Relay disabled 6255 | -8/Garrison | Discovered new exit (range 10) 6310 | -8/Garrison | Triggered checkpoint 6392 | -8/Garrison | Build established: Scavenger-Gunner 6477 | -8/Garrison | Discovered new exit (range 13) 6698 | -8/Garrison | Triggered checkpoint 6702 | -8/Garrison | Triggered checkpoint 6862 | -8/Garrison | Garrison Relay disabled 6971 | -8/Garrison | Entered Materials 7055 | -8/Materials | Crushed by falling debris 7382 | -8/Materials | Build established: Scavenger-Tank 7405 | -8/Materials | Discovered new exit (range 4) 7410 | -8/Materials | Entered Factory 7410 | -7/Factory | Evolved 2 slots: Utility x2 7534 | -7/Factory | Discovered new exit (range 10) 7862 | -7/Factory | Discovered new exit (range 6) 7939 | -7/Factory | Lost 3 parts (1p1u1w) 7966 | -7/Factory | Discovered new exit (range 14) 8021 | -7/Factory | Entered another Factory area 8021 | -6/Factory | Evolved 2 slots: Power x1, Weapon x1 8535 | -6/Factory | Identified exit to Lower Caves 8549 | -6/Factory | Discovered new exit (range 3) 8551 | -6/Factory | Entered another Factory area 8551 | -5/Factory | Evolved 2 slots: Propulsion x1, Weapon x1 9037 | -5/Factory | Fabricated Adv. Heat Sink (x2) 9081 | -5/Factory | Discovered new exit (range 9) 9307 | -5/Factory | Identified exit to Upper Caves 9566 | -5/Factory | Entered Upper Caves 9701 | -5/Upper Caves | Learned Factory terminal intel 10143 | -5/Upper Caves | Discovered new exit (range 12) 10149 | -5/Upper Caves | Learned Factory terminal intel 10192 | -5/Upper Caves | Entered another Upper Caves area 10786 | -5/Upper Caves | Attracted the attention of an 0b10 base 10901 | -5/Upper Caves | Destroyed 11 combat bots 10904 | -5/Upper Caves | Lost 8 parts (3n1u4w) 10910 | -5/Upper Caves | Discovered new exit (range 3) 10913 | -5/Upper Caves | Entered Zhirov 10913 | -5/Zhirov | Discovered new exit (range 3) 10935 | -5/Zhirov | Met Zhirov 10981 | -5/Zhirov | Learned location of Quarantine (-2) 10981 | -5/Zhirov | Learned location of Testing (-3) 10981 | -5/Zhirov | Learned location of Command (-1) 11004 | -5/Zhirov | Zhirov requested help retrieving the SGEMP Prototype 11063 | -5/Zhirov | Found Alien Artifact 11064 | -5/Zhirov | Identified Integrated Dissipator 11064 | -5/Zhirov | Installed Integrated Dissipator, increased core heat dissipation (+20) 11080 | -5/Zhirov | Found Alien Artifact 11081 | -5/Zhirov | Identified Transdimensional Reconstructor 11081 | -5/Zhirov | Warped through subspace 11159 | -5/Zhirov | Entered Proximity Caves 11446 | -4/Proximity Caves | Lost 3 parts (1n1u1w) 11497 | -4/Proximity Caves | Learned location of Armory (-3) 11621 | -4/Proximity Caves | Discovered new exit (range 13) 11675 | -4/Proximity Caves | Learned Research stockpile data 11738 | -4/Proximity Caves | Entered Factory 11738 | -4/Factory | Evolved 2 slots: Utility x2 11739 | -4/Factory | Loaded intel: 28 terminal locations 12403 | -4/Factory | Discovered new exit (range 9) 12476 | -4/Factory | Entered Research 12476 | -3/Research | Evolved 2 slots: Power x1, Utility x1 12477 | -3/Research | Identified exit to Armory 12601 | -3/Research | Lost 3 parts (1p1n1w) 12999 | -3/Research | Build established: Scavenger-Gunner 13451 | -3/Research | Found Prototype Processor 13452 | -3/Research | Identified Spectral Analyzer 14090 | -3/Research | Lost 3 parts (1p2n) 14114 | -3/Research | Build established: Scavenger-Tank 14208 | -3/Research | Spotted B-86 Titan 14295 | -3/Research | Discovered new exit (range 15) 15026 | -3/Research | Identified exit to Research 15159 | -3/Research | Build established: Scavenger-Skirmisher 15314 | -3/Research | System corruption reached 10% 15361 | -3/Research | Lost 4 parts (2n2u) 15420 | -3/Research | Garrison activated, responded to threat 15487 | -3/Research | Lost 6 parts (2p1n3w) 15619 | -3/Research | Core integrity fell below 50% 15621 | -3/Research | Released all parts (3) 15652 | -3/Research | Lost 25 parts (5p7n7u6w) 15672 | -3/Research | Core integrity fell below 20% 15738 | -3/Research | Discovered new exit (range 5) 15740 | -3/Research | Entered Testing 15770 | -3/Testing | Found Prototype Energy Cannon 15771 | -3/Testing | Identified Disintegrator 15781 | -3/Testing | Destroyed by P-80 Master with Gamma Rifle Last Messages --------------- 15747_ O-16 Technician uses terminal to summon reinforcements. 15747_ ALERT: Hostiles spotted, dispatching reinforcements to Terminal T003. 15747_ O-16 Technician locks terminal. 15747_ Terminal disabled. 15754_ Connecting with Terminal... 15754_ Current location identified: Testing >>Alert(Purge) Purged threat record, alert level lowered. 15754_ K-01 Serf destroyed. 15759_ R-10 Processor collects Wheel. 15765_ System corrupted: Substantial component data lost. 15766_ Reinforced Shell breached. 15770_ Dropped Hvy. Mace. 15770_ Acquired Prototype Energy Cannon. 15771_ Identified Disintegrator. 15773_ Slammed into P-80 Master. 15780_ System corrupted: Heat flow error (+272). 15780_ Dropped Disintegrator. [Achievement: This Is Interesting...] Map ----- +----------------------------------------------------+ | ??????????????????????????????? | | ??????????????????????????????? | | ??????????????????????????????? | | ??????????????????????????????? | | ??????????????????????????????? | | ??????????????????????????????? | | ??????????????????????????????? | | ??????????????????????????????? | | ??????????????????????????????? | | ?????????????????#########????? | | ?????????????????# #????? | | ?????????????????# #????? | | ?????????????????# #????? | | ?????????????????# #????? | | ?????????????????#### #????? | | ????????????????????# #????? | | ????????????????????# #####+ | | ????????????????????# | | ???????????#####????# | | ???????????# ????# "" | | ???????????# ????# "T | | ???????????#! ] """ ##### " | | ########???# """ #???# | | # #???# !! #???# = | | # ppp #???# !* """ #???# #### | | # """ @##### """ #???# #??? | | # / " + + """ #???# #??? | | # """ # #?? ????## ##?? | | # # #####+####### =#?? | | # " / = #?? | | # """ # % T #?? | | # """ ##+##### ###T### | | # """ #??????# #?###?## #### | | # #??????# #??????# #??? | | # #??????# #??????# #??? | | # #??????# #??????# #??? | | ########??????+ #??????# #??? | | ??????????????# +??????# ??? | | ??????????????# #??????# ??? | | ??????????????# +??????####??? | | ??????????????# #????????????? | | ??????????????? #????????????? | | ??????????????? ?????????????? | | ??????????????? ?????????????? | | ??????????????? ?????????????? | | ??????????????????????????????? | | ??????????????????????????????? | | ??????????????????????????????? | | ??????????????????????????????? | | ??????????????????????????????? | +----------------------------------------------------+ Best States ------------- Heat Dissipation 123 Energy Generation 51 Energy Capacity 385 Matter Stores 300 Matter Capacity 300 Sight Range 24 Robot Scan Range 18 Terrain Scan Range 16 Terrain Scan Density 10 Additional Mass Support 20 Armor Coverage 375 Evasion (%) 63 Core Analysis 6 Particle Charging 25 Relay Coupler Types 2 Relay Coupler Value 42 Item Schematics ----------------- Cryofiber Web | -8/Materials | Scanalyzed Carbon-fiber Leg | -8/Materials | Scanalyzed Adv. Heat Sink | -7/Factory | Scanalyzed Assault Drone Bay | -5/Zhirov | Free Exp. Heat Sink | -5/Zhirov | Free Exp. Optical Array | -5/Zhirov | Free Imp. Arc Thrower | -5/Zhirov | Free Robot Schematics ------------------ None Fabricated ------------ Adv. Heat Sink | x2 | -5/Factory Alien Tech Used ----------------- Integrated Dissipator Transdimensional Reconstructor Achievements -------------- Alien Tech Assimilation Complete Dangerous Findings Respectable Loadout Subspace Traveler The Science Guy This Is Interesting... Challenges ------------ None Game ------ Seed MissileSmallSegregator Manual? 0 Play Time 03:16:39 Cumulative 39.8 hours Start 2022.11.11 @ 11:57:02 End 2022.11.14 @ 09:05:34 Sessions 10 Manual Loads 0 Difficulty Rogue Special Mode None Game No. 17 Rogue 11 Adventurer 6 Explorer 0 Win Type - Total 0 Types 0/0/0/0/0/0/0/0/0 Lore% 28 Gallery% 35 Achievement% 31 Wizard Run 0 Options --------- ASCII 0 Keyboard 0 Movement Mouse Keybinds 0 Fullscreen 1 Font 18/SmallcapsGlow Map View 76x50 Tactical HUD 1 Map Filters NONE Filters NONE Steam 1 RUN: 6f5b590a-90f9-4b15-aa7c-ef2225cfe2f7